Cogmind - Beta 15 @@@ ROGUE MODE // 2025.07.22 @ 15:18:53 Player: Skysub Result: Destroyed by 9H-1NZ(R) with Subdweller Machine Gun Performance ------------- Evolutions (0) 0 Regions Visited (2) 400 Robots Destroyed (40) 200 Value Destroyed (791) 791 Prototype IDs (0) 0 Alien Tech Used (0) 0 Bonus (0) 0 TOTAL SCORE: 1391 Bonus ------- None Cogmind --------- Core Integrity 0/250 Matter 168/300 Energy 125/125 System Corruption 1% Temperature Cool (0) Movement Rolling (175) Ox5 Location -10/Subcaves Parts ------- > --- POWER (1) -------- Light Ion Engine > --- PROPULSION (2) --- Light Treads Compact Wheel > --- UTILITY (2) ------ Huge Storage Unit Structural Scanner > --- WEAPON (2) ------- Rocket Launcher Heavy Hammer > --- INVENTORY (25) --- Light Treads Wheel Subdweller Monowheel Improved Heat Sink Small Storage Unit High-capacity Storage Unit Subdweller Optics Core Shielding Small Laser Light Assault Rifle Grenade Launcher Rocket Launcher Rocket Launcher Rocket Launcher Mining Laser Peak State ------------ > --- POWER ------------ Light Ion Engine > --- PROPULSION ------- Light Treads Compact Wheel > --- UTILITY ---------- Huge Storage Unit Structural Scanner > --- WEAPON ----------- Rocket Launcher Heavy Hammer > --- INVENTORY -------- Light Treads Wheel Subdweller Monowheel Improved Heat Sink Small Storage Unit High-capacity Storage Unit Subdweller Optics Core Shielding Small Laser Light Assault Rifle Grenade Launcher Rocket Launcher Rocket Launcher Rocket Launcher Mining Laser [Rating: 11] Favorites ----------- Power Light Ion Engine Engine Light Ion Engine Propulsion Light Treads Treads Light Treads Wheel Compact Wheel Utility High-capacity Storage Unit Device Structural Scanner Storage High-capacity Storage Unit Protection Light Armor Plating Weapon Light Assault Rifle Energy Gun Small Laser Ballistic Gun Light Assault Rifle Launcher Rocket Launcher Impact Weapon Heavy Hammer Build | -11 -10 -10 ------- Run | Yrd Mat Sub Slots Evolved . | . . . Power . | . . . Propulsion . | . . . Utility . | . . . Weapon . | . . . Parts Attached 19 | 6 9 4 Power 2 | 1 1 . Engine 2 | 1 1 . Core . | . . . Reactor . | . . . Propulsion 4 | 2 2 . Treads 3 | 2 1 . Leg . | . . . Wheel 1 | . 1 . Hover . | . . . Flight . | . . . Utility 6 | 1 4 1 Device 1 | . . 1 Storage 3 | 1 2 . Processor . | . . . Hackware . | . . . Protection 2 | . 2 . Artifact . | . . . Weapon 7 | 2 2 3 Energy Gun 2 | 1 1 . Energy Cannon . | . . . Ballistic Gun 2 | 1 1 . Ballistic Cannon . | . . . Launcher 2 | . . 2 Special Weapon . | . . . Impact Weapon 1 | . . 1 Slashing Weapon . | . . . Piercing Weapon . | . . . Special Melee Weapon . | . . . Unidentified Prototypes . | . . . Parts Lost 5 | . 5 . Power 1 | . 1 . Propulsion 1 | . 1 . Utility 1 | . 1 . Weapon 2 | . 2 . Highest Loss Streak 2 | . 2 . To Critical Strikes . | . . . Average Backups 8 | 2 8 13 Power . | . . . Propulsion 2 | 1 2 2 Utility 1 | . 1 4 Weapon 4 | . 4 7 Tool/Special . | . . . Unused Backups 6 | . . 6 Power . | . . . Propulsion 1 | . . 1 Utility 1 | . . 1 Weapon 4 | . . 4 Tool/Special . | . . . Average Slot Usage (%) 96 | . 95 100 Engine 13 | . 13 14 Treads 22 | . 25 14 Wheel 4 | . 2 14 Device 1 | . . 7 Storage 14 | . 14 14 Protection 9 | . 10 6 Energy Gun 11 | . 13 1 Ballistic Gun 13 | . 13 13 Launcher 2 | . . 12 Peak Build Rating 11 | 6 9 11 Average Rating 7 | 5 7 9 On Entrance 5 | . 6 9 Naked Turns . | . . . Heaviest Build 91 | 10 86 91 Greatest Support 40 | 40 40 16 Greatest Overweight (x) 5 | . 5 5 Average Overweight (x) 2 | . 1 5 Largest Inventory Capacity 25 | 8 25 25 Average Capacity 18 | 7 19 25 Most Carried 15 | 4 13 15 Average Carried 8 | 2 8 13 Final Capacity 25 | 8 25 25 Final Carried 15 | 4 13 15 Class Distribution -------------------- 100% | Mutant Dominant Class ---------------- Mutant | -10/Materials Mutant | -10/Subcaves Resources | -11 -10 -10 ----------- Run | Yrd Mat Sub Matter Collected 496 | 178 271 47 Remotely . | . . . Salvage Created 1133 | 127 916 90 Parts 86 | 17 63 6 Haulers Intercepted 1 | . 1 . Recyclers Shooed 1 | 1 . . Parts Field Recycled . | . . . Retrieved Matter . | . . . Parts Self-Destructed 13 | . . 13 Prevented . | . . . Kills | -11 -10 -10 ------- Run | Yrd Mat Sub Combat Hostiles Destroyed 22 | . 17 5 Guns 17 | . 17 . AOE 5 | . . 5 Classes Destroyed 9 | 2 6 1 Worker 3 | 2 1 . Builder 5 | . 5 . Tunneler 5 | 5 . . Hauler 1 | . 1 . Recycler 1 | . 1 . Watcher 3 | . 3 . Swarmer 5 | . 3 2 Grunt 14 | . 14 . Subdweller 3 | . . 3 Best Kill Streak 5 | 5 4 2 Combat Bots Only 3 | . 3 2 Max Kills in Single Turn 2 | 1 1 2 Gunslinging . | . . . Exploded 2 | . . 2 Melee . | . . . Uniques/NPCs Destroyed . | . . . Combat | -11 -10 -10 -------- Run | Yrd Mat Sub Hostile Shots Fired 116 | . 99 17 Missed 25 | . 16 9 Hits 91 | . 83 8 Projectile 91 | . 83 8 Critical Strikes 4 | . 3 1 Actively Blocked 1 | . . 1 Damage Taken 1103 | . 975 128 Core 263 | . 201 62 Absorbed by Shields . | . . . Redirected to Shielding 5 | . . 5 Core Remaining (%) 100 | 100 . . Volleys Fired 130 | 27 93 10 Largest 2 | 2 2 2 Hottest 60 | 60 60 53 Shots Fired 249 | 51 179 19 Gun 239 | 51 179 9 Cannon . | . . . Launcher 10 | . . 10 Special . | . . . Kinetic 129 | 27 93 9 Thermal 110 | 24 86 . Explosive 10 | . . 10 Electromagnetic . | . . . Robot Hit Streak 15 | 5 15 10 Robot Miss Streak 4 | 3 4 1 Penetration Max . | . . . Secondary Targets . | . . . Shots Hit Robots 150 | 30 108 12 Core Hits 68 | 9 51 8 Critical Kills . | . . . Critical Parts Destroyed . | . . . Critical Strikes . | . . . Melee Attacks 1 | . . 1 Impact 1 | . . 1 Slashing . | . . . Piercing . | . . . Sneak Attacks . | . . . Combat Hostiles . | . . . Follow-up Attacks . | . . . Damage Inflicted 1880 | 270 1090 520 Guns 1372 | 268 1053 51 Cannons . | . . . Explosions 469 | . . 469 Melee . | . . . Ramming 39 | 2 37 . Kinetic 624 | 109 464 51 Thermal 748 | 159 589 . Explosive 469 | . . 469 Electromagnetic . | . . . Impact . | . . . Slashing . | . . . Piercing . | . . . Highest Corruption 1 | . 1 1 Average Corruption 1 | . 1 1 Corruption Purged . | . . . Corruption Blocked . | . . . Effects 3 | . 1 2 Message Errors 1 | . 1 . Heat Flow Errors 1 | . . 1 Energy Discharges 1 | . . 1 Overload Shots . | . . . Overflow Damage . | . . . Projectiles . | . . . Explosions . | . . . Melee . | . . . Knockbacks . | . . . Impact . | . . . Kinetic . | . . . Secondary . | . . . Self-Inflicted Damage 11 | . 11 . Shots . | . . . Rammed 4 | 1 3 . Targets Rammed 6 | 1 5 . Kicked . | . . . Crushed 2 | . 2 . Highest Temperature 202 | 40 202 94 Average Temperature 58 | 21 65 54 Received Heat Transfer 555 | . 531 24 Siege Activations . | . . . Martial Activations . | . . . Shielding Activations . | . . . Robots Disrupted . | . . . Combat Hostiles . | . . . Robots Corrupted . | . . . Combat Hostiles . | . . . Parts Fried . | . . . Impact Corruptions . | . . . Robots Melted . | . . . Combat Hostiles . | . . . Parts Melted 1 | . 1 . Heat Transferred 1700 | 375 1325 . Parts Sabotaged . | . . . Parts Stolen . | . . . Parts Stripped . | . . . Power Chain Reactions . | . . . Alert | -11 -10 -10 ------- Run | Yrd Mat Sub Maximum Alert Level . | . . . Low Security (%) 100 | 100 100 . Level 1 . | . . . Level 2 . | . . . Level 3 . | . . . Level 4 . | . . . Level 5 . | . . . High Security . | . . . Max Security . | . . . Peak Influence 112 | 10 112 . Initial . | . . . Average 34 | 1 40 . Influence Increases 662 | 35 577 50 Destroy 0b10 Robot/C 380 | . 340 40 Destroy 0b10 Robot/NC 90 | 35 55 . Destroy Leader 98 | . 88 10 Successful Hack 4 | . 4 . Select Force Hacks 60 | . 60 . Lose Combat Pursuer 30 | . 30 . Influence Decreases 662 | 35 544 83 Entered New Map 17 | . . 17 Time Decay 595 | 35 494 66 Lost Part 50 | . 50 . Squads Dispatched 5 | . 5 . Investigation 4 | . 4 . Extermination . | . . . Reinforcement 1 | . 1 . Assault . | . . . Garrison . | . . . Intercept . | . . . Searches Triggered . | . . . Construction Impeded . | . . . Haulers Reinforced . | . . . Active Scanning Responses . | . . . Cargo Convoy Interrupts . | . . . Stealth | -11 -10 -10 --------- Run | Yrd Mat Sub Distress Signals 2 | . 2 . Communications Jammed . | . . . Distress Signals . | . . . Times Spotted 34 | . 29 5 Peak Tracking Total 4 | . 4 2 Tactical Retreats 2 | . 2 . Traps | -11 -10 -10 ------- Run | Yrd Mat Sub Traps Triggered 3 | . 3 . Indirectly . | . . . Trap Hack Attempts . | . . . Triggered . | . . . Disarmed . | . . . Reprogrammed . | . . . Reused . | . . . Traps Extracted . | . . . Installed . | . . . Triggered . | . . . Machines | -11 -10 -10 ---------- Run | Yrd Mat Sub Machines Disabled 1 | . . 1 Max in Single Turn 1 | . . 1 Machines Repaired . | . . . Machines Dismantled . | . . . Machines Sabotaged . | . . . Overloaded Fab Kills . | . . . Hacking | -11 -10 -10 --------- Run | Yrd Mat Sub Machines Accessed 7 | . 7 . Terminals 5 | . 5 . Fabricators . | . . . Repair Stations . | . . . Recycling Units 2 | . 2 . Scanalyzers . | . . . Garrison Access . | . . . Total Hacks 18 | . 18 . Successful 12 | . 12 . Failed 6 | . 6 . Catastrophic . | . . . Database Lockouts . | . . . Manual 14 | . 14 . Terminals 13 | . 13 . Fabricators . | . . . Repair Stations . | . . . Recycling Units 5 | . 5 . Scanalyzers . | . . . Garrison Access . | . . . Terminal Hacks . | . . . Fabricator Hacks . | . . . Repair Station Hacks . | . . . Recycling Unit Hacks 3 | . 3 . Report Inventory 2 | . 2 . Retrieve Components 1 | . 1 . Scanalyzer . | . . . Garrison Access Hacks . | . . . Unauthorized Hacks 9 | . 9 . Terminals 7 | . 7 . Botnet 2 | . 2 . Skim 5 | . 5 . Fabricators . | . . . Repair Stations . | . . . Recycling Units 2 | . 2 . Tunnel 2 | . 2 . Scanalyzers . | . . . Garrison Access . | . . . Data Cores Recovered . | . . . Used . | . . . Hacking Detections 6 | . 6 . Full Trace Events . | . . . Feedback Events . | . . . Feedback Blocked . | . . . Robot Schematics Acquired . | . . . Robots Built . | . . . Authchips . | . . . Time . | . . . Total Robot Build Rating . | . . . Part Schematics Acquired . | . . . Parts Built . | . . . Authchips . | . . . Time . | . . . Total Part Build Rating . | . . . Parts Repaired . | . . . Time . | . . . Parts Recycled . | . . . Recycled Matter . | . . . Retrieved Matter . | . . . Retrieved Components 9 | . 9 . Parts Scanalyzed . | . . . Part Schematics Acquired . | . . . Parts Damaged . | . . . Bothacking | -11 -10 -10 ------------ Run | Yrd Mat Sub Used RIF Installer . | . . . Robots Hacked . | . . . Non-combat . | . . . Combat . | . . . Robot Hacks Applied . | . . . Relay Couplers Released . | . . . Fabnet Peak Effective % . | . . . Robots Rewired . | . . . Allies Hacked . | . . . Hacks Repelled . | . . . Allies | -11 -10 -10 -------- Run | Yrd Mat Sub Total Allies . | . . . Largest Group . | . . . Highest-Rated Group . | . . . Highest-Rated Ally . | . . . Total Orders . | . . . Ally Attacks . | . . . Total Damage . | . . . Kills . | . . . Allies Corrupted . | . . . Allies Melted . | . . . Intel | -11 -10 -10 ------- Run | Yrd Mat Sub Active Infowar (turns) 256 | . . 256 Structural 256 | . . 256 Robot Analysis Total . | . . . Derelict Logs Recovered 2 | . . 2 Drone Launches . | . . . Drone Recoveries . | . . . Exploration | -11 -10 -10 ------------- Run | Yrd Mat Sub Turns Passed 2661 | 312 1875 474 Spaces Moved 1135 | 143 745 247 Core 3 | 3 . . Treads 700 | 140 560 . Legs . | . . . Wheels 432 | . 185 247 Hover . | . . . Flight . | . . . Fastest Speed 50 | 50 130 175 Average Speed 195 | 157 210 175 Slowest Speed 240 | 160 240 175 Overloaded Moves . | . . . Propulsion Burnouts . | . . . Robots Hopped . | . . . Potential Cave-ins . | . . . Cave-ins Triggered . | . . . Exploration Rate (%) 39 | 7 92 20 Regions Visited 2 Branch Regions 1 Pre-discovered Areas 4 | . 4 . Known Exits Taken 1 | . 1 . Unknown Exits Taken 1 | 1 . . Scrap Searched . | . . . Spaces Dug . | . . . Terrain Destroyed 71 | . . 71 Melee . | . . . Projectile . | . . . AOE 71 | . . 71 Terrain Rammed . | . . . Walls Destroyed . | . . . Machines Disabled . | . . . Actions | -11 -10 -10 --------- Run | Yrd Mat Sub Total 1335 | 180 889 266 Wait 25 | . 25 . Move 1133 | 142 744 247 Hop . | . . . Pick Up 18 | 4 12 2 Fast Attach 8 | 6 2 . Attach 5 | . 5 . Detach 1 | . 1 . Swap 8 | . 2 6 Drop . | . . . Fire 130 | 27 93 10 Melee 1 | . . 1 Ram 1 | . 1 . Kick . | . . . Crush 5 | 1 4 . Escape Stasis . | . . . Rewire . | . . . Trap . | . . . Miscellaneous . | . . . Route ------- -11/Scrapyard -10/Materials (discovered 6 exits: *Mat x3 / *Min x2 / *Sub) -10/Subcaves (discovered 1 exit: *Rec) History --------- Turn | Location | Event 40 | -11/Scrapyard | Discovered new exit (range 15) 313 | -11/Scrapyard | Entered Materials 314 | -10/Materials | Build established: Mutant 834 | -10/Materials | Discovered new exit (range 10) 968 | -10/Materials | Learned 2 Storage zone layouts 992 | -10/Materials | Learned location of Recycling (-7) 1007 | -10/Materials | Loaded intel: 11 trap records 1012 | -10/Materials | Learned location of Mines (-10) 1025 | -10/Materials | Identified exit to Mines 1025 | -10/Materials | Identified exit to Subcaves 1025 | -10/Materials | Identified exit to Materials 1586 | -10/Materials | Core integrity fell below 50% 1646 | -10/Materials | Core integrity fell below 20% 2188 | -10/Materials | Entered Subcaves 2189 | -10/Subcaves | Identified exit to Recycling 2192 | -10/Subcaves | Learned 2 Materials zone layouts 2274 | -10/Subcaves | Learned 2 Materials zone layouts 2525 | -10/Subcaves | Ambushed by Subdweller buried in earth 2662 | -10/Subcaves | Destroyed by 9H-1NZ(R) with Subdweller Machine Gun Last Messages --------------- 02192_ Acquired derelict log, extracted data. Data stored: Materials zone layouts (x2). 02274_ Acquired derelict log, extracted data. Data stored: Materials zone layouts (x2). 02369_ 7W-H20(R) destroyed. 02375_ JN-YI7(R) affixes Scrap Shield Fragment to Scrap Shield. 02386_ JN-YI7(R) destroyed. 02406_ The unstable cave ceiling collapses. 02508_ System corrupted: Heat flow error (+134). 02525_ S-10 Pest destroyed. 02526_ EY-R9L(R): "THANKSYOU!" 02533_ Lgt. Assault Rifle fries itself beyond repair. 02562_ System corrupted: Energy discharge (-47). 02617_ 0Y-FUZ(R): "SUBMAD!" 02619_ 0Y-FUZ(R) destroyed. 02645_ Acquired Sub. Monowheel. 02646_ Acquired 47 matter. 02649_ Acquired Sub. Optics. Map ----- +----------------------------------------------------+ | ?????????????????????????????????????????????????? | | ?????????????????????????????????????????????????? | | ?????????????????????????????????????????????????? | | ????????????????????????????????????????????????## | | ??????????????????????????????????????????????#### | | ?????????????????????????????????????????????##### | | ????????????????????????????????????????????#### | | ???????????????????????????????????????????#### | | ???????????????????????????????????????????### | | ???????????????????????????????????????????## | | ??????????????????????????????????????####### | | ??????????????????????????????????????####### | | ??????????????????????????????????????##" ##" | | ??????????????????????????????????????## # | | ???????????????????????????????????????? ##"#" ## | | ???????????????????????????????????????? ### ## | | ????????????????????????????????????????? ## | | ???????????????????????????????????######## | | ????????????????????????????????########### | | ???????????????????? ####???????##### ### | | ??????????????????? "############# ## | | ??????????????? ""?"## ########## #### | | ????????????????"" "# %# #### ####### | | ????????????????##" %#" ########## | | ????????????????### ! # #####????# | | ????????????????"# @" & ######???????# | | ????????????% " R " ######???????? | | ???????????? "" % ""### ##???????????? | | ????????????? ####### ###???????????? | | ??????????? ## """ ##############???????????? | | ??????????????#### """??????########????????????? | | ???????????????#####"""??????????????????????????? | | ????????????????###### ??????????????????????????? | | ??????????????????#####??????????????????????????? | | ?????????????????????????????????????????????????? | | ?????????????????????????????????????????????????? | | ?????????????????????????????????????????????????? | | ?????????????????????????????????????????????????? | | ?????????????????????????????????????????????????? | | ?????????????????????????????????????????????????? | | ?????????????????????????????????????????????????? | | ?????????????????????????????????????????????????? | | ?????????????????????????????????????????????????? | | ?????????????????????????????????????????????????? | | ?????????????????????????????????????????????????? | | ?????????????????????????????????????????????????? | | ?????????????????????????????????????????????????? | | ?????????????????????????????????????????????????? | | ?????????????????????????????????????????????????? | | ?????????????????????????????????????????????????? | +----------------------------------------------------+ Best States ------------- Heat Dissipation 25 Energy Generation 10 Energy Capacity 125 Matter Stores 300 Matter Capacity 300 Sight Range 16 Terrain Scan Density 10 Armor Coverage 150 Core Shielding 20 Evasion (%) 40 Recoil Reduction 2 Item Schematics ----------------- None Robot Schematics ------------------ None Fabricated ------------ Nothing Repaired ---------- Nothing Alien Tech Used ----------------- None Achievements -------------- None Challenges ------------ None Game ------ Seed ArchitectFlightLeg Manual? 0 Play Time 00:12:53 Cumulative 172.6 hours Start 2025.07.22 @ 15:08:03 End 2025.07.22 @ 15:18:53 Sessions 1 Manual Loads 0 Difficulty Rogue Special Mode None Game No. 195 Rogue 195 Adventurer 0 Explorer 0 Win Type - Total 3 Types 1/0/0/1/0/0/0/0/0/1 Lore% 68 Gallery% 63 Achievement% 56 Wizard Run 0 Options --------- Layout 1 ASCII 0 Keyboard 1 Movement Arrows Keybinds 0 Fullscreen 1 Font 36/Smallcaps Map View 50x40 Zoom Use 0% Tactical HUD 1 Map Filters NONE Filters NONE Steam 1 RUN: ba396b3c-37a6-442c-85a3-260b894ab296